bitfinex/quotes_BTCUSD_20240620
["timestamp","ask_amount","ask_price","bid_price","bid_amount"]
[1718921486245,0.1907228,65244.0,65243.0,0.49347723]
[1718921486788,0.1907228,65244.0,65243.0,0.46547723]
[1718921486996,0.19071259,65244.0,65243.0,0.49347723]
[1718921487602,0.19071259,65244.0,65243.0,0.47076112]
[1718921490055,0.16793546,65244.0,65243.0,0.47076112]
[1718921490209,0.19179544,65244.0,65243.0,0.47076112]
[1718921493656,0.28775606,65244.0,65243.0,0.47076112]
[1718921496409,0.26389608,65244.0,65243.0,0.47076112]
[1718921496610,0.28789711,65244.0,65243.0,0.47076112]
[1718921497887,0.28789711,65244.0,65243.0,0.47170712]
[1718921499631,0.28776106,65244.0,65243.0,0.47170712]
[1718921504406,0.20348728,65244.0,65243.0,0.52633783]
[1718921504771,0.1897855,65244.0,65243.0,0.52633783]
[1718921504992,0.18972528,65244.0,65243.0,0.52633783]
[1718921506057,0.18996673,65244.0,65243.0,0.52633783]
[1718921508102,0.18996673,65244.0,65243.0,0.47170712]
[1718921509334,0.1898611,65244.0,65243.0,0.47170712]
[1718921512573,0.16592052,65244.0,65243.0,0.47170712]
[1718921512780,0.190038,65244.0,65243.0,0.47170712]
[1718921517754,0.19004092,65244.0,65243.0,0.47170712]
[1718921518965,0.19004092,65244.0,65243.0,0.51887783]
[1718921519170,0.16592052,65244.0,65243.0,0.51887783]
[1718921519406,0.19001907,65244.0,65243.0,0.51887783]
[1718921519605,0.19001907,65244.0,65243.0,0.47170712]
[1718921525666,0.19029064,65244.0,65243.0,0.47170712]
[1718921528964,0.1902859,65244.0,65243.0,0.47170712]
[1718921531057,0.1911459,65244.0,65243.0,0.47170712]
[1718921532033,0.19138377,65244.0,65243.0,0.47170712]
[1718921532302,0.19138377,65244.0,65243.0,0.51887783]
[1718921534458,0.19138377,65244.0,65243.0,0.54187783]
[1718921535266,0.19138641,65244.0,65243.0,0.54187783]
[1718921535889,0.19138641,65244.0,65243.0,0.49470712]
[1718921541760,0.19107558,65244.0,65243.0,0.49470712]
[1718921545005,0.16678052,65244.0,65243.0,0.49470712]
[1718921545210,0.19102153,65244.0,65243.0,0.49470712]
[1718921548191,0.19087547,65244.0,65243.0,0.49470712]
[1718921550273,0.19087547,65244.0,65243.0,0.55163783]
[1718921551322,0.19081804,65244.0,65243.0,0.55163783]
[1718921552734,0.19081804,65244.0,65243.0,0.49470712]
[1718921553538,0.19081804,65244.0,65243.0,0.54210712]
[1718921554549,0.17816752,65244.0,65243.0,0.54210712]
[1718921554749,0.18837704,65244.0,65243.0,0.54210712]
[1718921557851,0.16433952,65244.0,65243.0,0.54210712]
[1718921558191,0.18823901,65244.0,65243.0,0.54210712]
[1718921558509,0.18823901,65244.0,65243.0,0.60377783]
[1718921561069,0.16433952,65244.0,65243.0,0.60377783]
[1718921561307,0.18821931,65244.0,65243.0,0.60377783]
[1718921564367,0.18849711,65244.0,65243.0,0.60377783]
[1718921564807,0.18849711,65244.0,65243.0,0.54210712]
[1718921567669,0.18867893,65244.0,65243.0,0.54210712]
[1718921570689,0.16433952,65244.0,65243.0,0.54210712]
[1718921570918,0.18953639,65244.0,65243.0,0.54210712]
[1718921574022,0.18934325,65244.0,65243.0,0.54210712]
[1718921574272,0.18934325,65244.0,65243.0,0.60377783]
[1718921577399,0.18926544,65244.0,65243.0,0.60377783]
[1718921577964,0.16433952,65244.0,65243.0,0.60377783]
[1718921578176,0.18928349,65244.0,65243.0,0.60377783]
[1718921580374,0.16433952,65244.0,65243.0,0.60377783]
[1718921580602,0.18920365,65244.0,65243.0,0.60377783]
[1718921587013,0.1900602,65244.0,65243.0,0.60377783]
[1718921588489,0.1900602,65244.0,65243.0,0.70377783]
[1718921590095,0.16433952,65244.0,65243.0,0.70377783]
[1718921590296,0.18969466,65244.0,65243.0,0.70377783]
[1718921590924,0.18969466,65244.0,65243.0,0.68977783]
[1718921591304,0.18969466,65244.0,65243.0,0.69677783]
[1718921591505,0.18969466,65244.0,65243.0,0.68277783]
[1718921591719,0.18969466,65244.0,65243.0,0.67577783]
[1718921592261,0.18969466,65244.0,65243.0,0.68577783]
[1718921592404,0.18969466,65244.0,65243.0,0.69477783]
[1718921593021,0.18969466,65244.0,65243.0,0.70677783]
[1718921593233,0.18969466,65244.0,65243.0,0.64510712]
[1718921593392,0.18980487,65244.0,65243.0,0.71970712]
[1718921596469,0.16433952,65244.0,65243.0,0.71970712]
[1718921596672,0.18949784,65244.0,65243.0,0.64510712]
[1718921596890,0.18949784,65244.0,65243.0,0.78421783]
[1718921599666,0.16433952,65244.0,65243.0,0.78421783]
[1718921599872,0.18937629,65244.0,65243.0,0.78421783]
[1718921602972,0.18941277,65244.0,65243.0,0.78421783]
[1718921606128,0.19036108,65244.0,65243.0,0.78421783]
[1718921606538,0.16433952,65244.0,65243.0,0.78421783]
[1718921606732,0.19036025,65244.0,65243.0,0.78421783]
[1718921607549,0.19036025,65244.0,65243.0,0.70961783]
[1718921607754,0.18015073,65244.0,65243.0,0.78421783]
[1718921609342,0.15413,65244.0,65243.0,0.78421783]
[1718921609513,0.17897818,65244.0,65243.0,0.78421783]
[1718921609716,0.17897818,65244.0,65243.0,0.70961783]
[1718921609886,0.17897818,65244.0,65243.0,0.78421783]
[1718921615883,0.17828969,65244.0,65243.0,0.78421783]
[1718921616448,0.05649575,65255.0,65243.0,0.78421783]
[1718921616641,0.05649575,65255.0,65254.0,0.15256112]
[1718921616886,0.08071361,65255.0,65254.0,0.15256112]
[1718921618900,0.05649575,65255.0,65254.0,0.15256112]
[1718921619102,0.07659457,65255.0,65254.0,0.15256112]
[1718921619435,0.07659457,65255.0,65254.0,0.19394723]
[1718921619824,0.07659457,65255.0,65254.0,0.15256112]
[1718921622396,0.07671194,65255.0,65254.0,0.15256112]
[1718921623689,0.08538524,65255.0,65254.0,0.15256112]
[1718921624496,0.02888949,65255.0,65254.0,0.15256112]
[1718921625312,0.0086733,65255.0,65254.0,0.15256112]
[1718921625523,0.02879221,65255.0,65254.0,0.15256112]
[1718921627173,0.02879221,65255.0,65254.0,0.15350712]
[1718921628312,0.02965221,65255.0,65254.0,0.15350712]
[1718921628524,0.02828697,65255.0,65254.0,0.15350712]
[1718921630644,0.04283514,65257.0,65254.0,0.15350712]
[1718921630844,0.0243529,65256.0,65255.0,0.15256112]
[1718921631622,0.00723741,65256.0,65255.0,0.15256112]
[1718921631839,0.02110695,65256.0,65255.0,0.15256112]
[1718921632148,0.02110695,65256.0,65255.0,0.1795199]
[1718921634825,0.02055794,65256.0,65255.0,0.1795199]
[1718921638148,0.00723741,65256.0,65255.0,0.2025199]
[1718921638355,0.02052975,65256.0,65255.0,0.2025199]
[1718921641263,0.00723741,65256.0,65255.0,0.2025199]
[1718921641493,0.02070162,65256.0,65255.0,0.2025199]
[1718921643028,0.02070162,65256.0,65255.0,0.3830199]
[1718921644100,0.01346421,65256.0,65255.0,0.3830199]
[1718921644519,0.01347966,65256.0,65255.0,0.3830199]
[1718921644941,0.02695943,65256.0,65255.0,0.3830199]
[1718921646603,0.03420697,65256.0,65255.0,0.3830199]
[1718921646810,0.02695943,65256.0,65255.0,0.3830199]
[1718921647049,0.03420697,65256.0,65255.0,0.3830199]
[1718921647275,0.02695943,65256.0,65255.0,0.3830199]
[1718921647692,0.02650566,65256.0,65255.0,0.3830199]
[1718921648566,0.0337532,65256.0,65255.0,0.3830199]
[1718921649997,0.02027354,65256.0,65255.0,0.3830199]
[1718921650900,0.02026223,65256.0,65255.0,0.3830199]
[1718921651860,0.02026223,65256.0,65255.0,0.6064199]
[1718921654301,0.02317984,65256.0,65255.0,0.6064199]
[1718921656290,0.02317984,65256.0,65255.0,0.5318199]
[1718921656503,0.02317984,65256.0,65255.0,0.6064199]
[1718921657440,0.02255988,65256.0,65255.0,0.5318199]
[1718921657965,0.01531234,65256.0,65255.0,0.5318199]
[1718921660455,0.01493941,65256.0,65255.0,0.5318199]
[1718921660654,0.01493941,65257.0,65255.0,0.6064199]
[1718921660856,0.03757738,65258.0,65256.0,0.23629771]
[1718921661008,0.03757738,65258.0,65257.0,0.15256112]
[1718921661214,0.01504926,65258.0,65257.0,0.17556112]
[1718921663708,0.01466098,65258.0,65257.0,0.17556112]
[1718921663909,0.01466098,65258.0,65257.0,0.24246597]
[1718921664284,0.01466098,65259.0,65257.0,0.24246597]
[1718921664486,0.01466098,65259.0,65258.0,0.15256112]
[1718921666814,0.01473561,65259.0,65258.0,0.15256112]
[1718921668522,0.01473561,65259.0,65258.0,0.2126228]
[1718921668750,0.02162926,65259.0,65258.0,0.2126228]
[1718921670137,0.02162798,65259.0,65258.0,0.2126228]
[1718921673268,0.0216014,65259.0,65258.0,0.2126228]
[1718921674092,0.0216014,65259.0,65258.0,0.15256112]
[1718921674494,0.02160031,65259.0,65258.0,0.15256112]
[1718921679602,0.02149434,65259.0,65258.0,0.15256112]
[1718921685713,0.02005726,65259.0,65258.0,0.15256112]
[1718921688524,0.28845726,65259.0,65258.0,0.15256112]
[1718921688731,0.44735942,65259.0,65258.0,0.15256112]
[1718921688962,0.422,65256.0,65255.0,0.000946]
[1718921689201,0.55751462,65256.0,65255.0,0.000946]
[1718921689629,0.5650075,65256.0,65255.0,0.000946]
[1718921690080,0.70288008,65256.0,65255.0,0.000946]
[1718921690547,0.60282367,65256.0,65255.0,0.001946]
[1718921690757,0.70282367,65256.0,65255.0,0.000946]
[1718921690962,0.70282367,65256.0,65255.0,0.001946]
[1718921691404,0.5670075,65256.0,65255.0,0.001946]
[1718921691846,0.5650075,65256.0,65255.0,0.001946]
[1718921692268,0.5690075,65256.0,65255.0,0.002946]
[1718921692693,0.5780075,65256.0,65255.0,0.003946]
[1718921692894,0.5780075,65256.0,65255.0,5.401e-05]
[1718921693176,0.5780075,65256.0,65254.0,0.000946]
[1718921693177,0.4694,65255.0,65254.0,0.000946]
[1718921693398,0.48291462,65255.0,65254.0,0.15350712]
[1718921693593,0.49040425,65255.0,65254.0,0.15350712]
[1718921694608,0.59940425,65255.0,65254.0,0.15450712]
[1718921694793,0.60440425,65255.0,65254.0,0.15550712]
[1718921694994,0.59088963,65255.0,65254.0,0.15550712]
[1718921695203,0.6125038,65255.0,65254.0,0.15550712]
[1718921695906,0.70274591,65255.0,65254.0,0.15550712]
[1718921698020,0.68113174,65255.0,65254.0,0.15550712]
[1718921698237,0.70275608,65255.0,65254.0,0.15550712]
[1718921698436,0.68113174,65255.0,65254.0,0.15550712]
[1718921698868,0.68113174,65255.0,65254.0,0.002946]
[1718921698869,0.59088963,65255.0,65254.0,0.002946]
[1718921699270,0.322,65244.0,65243.0,0.470846]
[1718921699472,0.322,65244.0,65243.0,0.62340712]
[1718921699644,0.32945017,65244.0,65243.0,0.62340712]
[1718921700705,0.32945017,65244.0,65243.0,0.15650712]
[1718921700911,0.40405017,65244.0,65243.0,0.15650712]
[1718921701124,0.50405017,65244.0,65243.0,0.15750712]
[1718921701971,0.50405017,65244.0,65243.0,0.15650712]
[1718921702203,0.50805017,65244.0,65243.0,0.15650712]
[1718921702818,0.60805017,65244.0,65243.0,0.15350712]
[1718921703123,0.61105017,65244.0,65243.0,0.15350712]
[1718921703633,0.60518336,65244.0,65243.0,0.15350712]
[1718921703768,0.53645017,65244.0,65243.0,0.15350712]
[1718921706187,0.55839147,65244.0,65243.0,0.15350712]
[1718921707488,0.62999147,65244.0,65243.0,0.15350712]
[1718921707717,0.62599147,65244.0,65243.0,0.15350712]
[1718921707892,0.63299147,65244.0,65243.0,0.15450712]
[1718921708102,0.63699147,65244.0,65243.0,0.15450712]
[1718921708308,0.70831879,65244.0,65243.0,0.001946]
[1718921708511,0.70431879,65244.0,65243.0,0.001946]
[1718921708857,0.71431879,65244.0,65243.0,0.002946]
[1718921709285,0.68719146,65244.0,65243.0,0.002946]
[1718921709488,0.68719146,65244.0,65243.0,1e-08]
[1718921709489,0.69719146,65244.0,65243.0,1e-08]
[1718921710052,0.67525016,65244.0,65243.0,1e-08]
[1718921710646,0.01,65227.0,65224.0,0.1464]
[1718921710863,0.302,65225.0,65224.0,0.1464]
[1718921711058,0.322,65225.0,65224.0,0.1464]
[1718921711289,0.30934303,65225.0,65224.0,0.1464]
[1718921711543,0.32700465,65225.0,65224.0,0.1464]
[1718921711754,0.34700465,65225.0,65224.0,0.1464]
[1718921711965,0.33700465,65225.0,65224.0,0.1464]
[1718921712200,0.34700465,65225.0,65224.0,0.29896112]
[1718921712640,0.34800465,65225.0,65224.0,0.29896112]
[1718921712866,0.34800465,65225.0,65224.0,0.15256112]
[1718921713323,0.34774879,65225.0,65224.0,0.15256112]
[1718921713562,0.34874879,65225.0,65224.0,0.15856112]
[1718921715237,0.32874879,65225.0,65224.0,0.15856112]
[1718921716500,0.34692276,65225.0,65224.0,0.15856112]
[1718921716719,0.44692276,65225.0,65224.0,0.15856112]
[1718921717580,0.44692276,65225.0,65224.0,0.15256112]
[1718921717581,0.44492276,65225.0,65224.0,0.15256112]
[1718921717898,0.45392276,65225.0,65224.0,0.15256112]
[1718921718105,0.46192276,65225.0,65224.0,0.15356112]
[1718921718307,0.46192276,65225.0,65224.0,0.001]
[1718921718308,0.45292276,65225.0,65224.0,0.001]
[1718921718772,0.46092276,65225.0,65224.0,0.001]
[1718921719626,0.46234265,65225.0,65224.0,0.001]
[1718921720238,0.52703692,65225.0,65224.0,0.001]
[1718921720451,0.62703692,65225.0,65224.0,0.001]
[1718921721502,0.67297939,65225.0,65224.0,0.001]
[1718921722921,0.65597977,65225.0,65224.0,0.00092522]
[1718921723160,0.60858121,65225.0,65224.0,0.00092522]
[1718921723961,0.61858121,65225.0,65224.0,0.00092522]
[1718921724613,0.322,65213.0,65212.0,0.2646]
[1718921724809,0.322,65213.0,65212.0,0.41716112]
[1718921724810,0.33929571,65213.0,65212.0,0.41716112]
[1718921724985,0.34660161,65213.0,65212.0,0.41716112]
[1718921725191,0.44660161,65213.0,65212.0,0.15256112]
[1718921725515,0.52120161,65213.0,65212.0,0.15350712]
[1718921725895,0.5039059,65213.0,65212.0,0.15350712]
[1718921726097,0.5215538,65213.0,65212.0,0.15850712]
[1718921726283,0.5215538,65213.0,65212.0,0.15350712]
[1718921726922,0.5225538,65213.0,65212.0,0.15350712]
[1718921727314,0.5215538,65213.0,65212.0,0.15350712]
[1718921727725,0.5225538,65213.0,65212.0,0.15350712]
[1718921729135,0.52287798,65213.0,65212.0,0.15350712]
[1718921732135,0.5059059,65213.0,65212.0,0.15350712]
[1718921732344,0.52249126,65213.0,65212.0,0.15350712]
[1718921733117,0.32789126,65213.0,65212.0,0.15350712]
[1718921733272,0.32789126,65213.0,65212.0,0.30210712]
[1718921734367,0.34789126,65213.0,65212.0,0.30210712]
[1718921735385,0.34719327,65213.0,65212.0,0.30210712]
[1718921735791,0.34513929,65213.0,65212.0,0.30210712]
[1718921737956,0.03788737,65213.0,65212.0,0.30210712]
[1718921738575,0.03752998,65213.0,65212.0,0.30210712]
[1718921739926,0.08055421,65213.0,65212.0,0.30210712]
[1718921741776,0.08038231,65213.0,65212.0,0.30210712]
[1718921744916,0.06502423,65213.0,65212.0,0.30210712]
[1718921745109,0.08029447,65213.0,65212.0,0.30210712]
[1718921748158,0.06502423,65213.0,65212.0,0.30210712]
[1718921748375,0.08013609,65213.0,65212.0,0.30210712]
[1718921751348,0.06502423,65213.0,65212.0,0.30210712]
[1718921751554,0.07987744,65213.0,65212.0,0.30210712]
[1718921754801,0.07977465,65213.0,65212.0,0.30210712]
[1718921755026,0.07977465,65213.0,65212.0,0.29777677]
[1718921756283,0.07265353,65221.0,65212.0,0.29777677]
[1718921757349,0.11435689,65221.0,65212.0,0.29777677]
[1718921757563,0.12535689,65221.0,65212.0,0.29777677]
[1718921757777,0.1535802,65221.0,65212.0,0.29777677]
[1718921758197,0.00086,65213.0,65212.0,0.29777677]
[1718921759574,0.05140872,65213.0,65212.0,0.29777677]
[1718921760428,0.05240872,65213.0,65212.0,0.29777677]
[1718921760635,0.05240872,65213.0,65212.0,0.29268761]
[1718921764251,0.05240872,65213.0,65212.0,0.33354637]
[1718921764435,0.05240872,65213.0,65212.0,0.45724637]
[1718921766103,0.06625743,65213.0,65212.0,0.45724637]
[1718921766710,0.06629552,65213.0,65212.0,0.45724637]
[1718921768155,0.10782661,65213.0,65212.0,0.45724637]
[1718921769806,0.10782661,65213.0,65212.0,0.41638761]
[1718921770399,0.10760012,65213.0,65212.0,0.41638761]
[1718921773706,0.1075959,65213.0,65212.0,0.41638761]
[1718921775821,0.09393981,65213.0,65212.0,0.41638761]
[1718921775967,0.10776262,65213.0,65212.0,0.41638761]
[1718921776358,0.10776262,65213.0,65212.0,0.45802637]
[1718921776981,0.1077358,65213.0,65212.0,0.41638761]
[1718921777181,0.09393981,65213.0,65212.0,0.41638761]
[1718921777476,0.10773636,65213.0,65212.0,0.41638761]
[1718921779927,0.09393981,65213.0,65212.0,0.41638761]
[1718921780132,0.1067941,65213.0,65212.0,0.41638761]
[1718921783298,0.10591373,65213.0,65212.0,0.41638761]
[1718921786345,0.10581756,65213.0,65212.0,0.41638761]
[1718921792637,0.10581166,65213.0,65212.0,0.41638761]
[1718921793401,0.10581166,65213.0,65212.0,0.46002637]
[1718921795616,0.10770873,65213.0,65212.0,0.46002637]
[1718921798862,0.10789527,65213.0,65212.0,0.46002637]
[1718921801135,0.10789527,65213.0,65212.0,0.41638761]
[1718921801807,0.09393981,65213.0,65212.0,0.41638761]
[1718921802017,0.10755824,65213.0,65212.0,0.41638761]
[1718921803419,0.10755824,65213.0,65212.0,0.42548761]
[1718921804893,0.09393981,65213.0,65212.0,0.42548761]
[1718921805131,0.10682257,65213.0,65212.0,0.42548761]
[1718921805503,0.10682257,65213.0,65212.0,0.47003637]
[1718921808047,0.10707907,65213.0,65212.0,0.47003637]
[1718921810403,0.10707907,65213.0,65212.0,0.42548761]
[1718921811159,0.09393981,65213.0,65212.0,0.42548761]
[1718921811388,0.10699906,65213.0,65212.0,0.42548761]
[1718921814511,0.10698177,65213.0,65212.0,0.42548761]
[1718921814734,0.10698193,65213.0,65212.0,0.42548761]
[1718921814904,0.10698194,65213.0,65212.0,0.42548761]
[1718921815402,0.10706517,65213.0,65212.0,0.42548761]
[1718921817465,0.10706517,65213.0,65212.0,0.47003637]
[1718921817699,0.10713766,65213.0,65212.0,0.47003637]
[1718921819818,0.10713766,65213.0,65212.0,0.14408761]
[1718921820860,0.10622739,65213.0,65212.0,0.14408761]
[1718921822724,0.02,65208.0,65203.0,0.000946]
[1718921822915,0.0746,65204.0,65203.0,0.15256112]
[1718921823172,0.1374363,65204.0,65203.0,0.14038512]
[1718921823374,0.1574363,65204.0,65203.0,0.14038512]
[1718921823820,0.14514872,65204.0,65203.0,0.14038512]
[1718921823957,0.17051851,65204.0,65203.0,0.14038512]
[1718921824131,0.17051851,65204.0,65195.0,0.000946]
[1718921824132,0.02,65202.0,65195.0,0.000946]
[1718921824333,0.09591851,65201.0,65199.0,0.15256112]
[1718921824599,0.15051851,65200.0,65199.0,0.15256112]
[1718921825936,0.15451851,65200.0,65199.0,0.15256112]
[1718921826067,0.07991851,65200.0,65199.0,0.15256112]
[1718921826272,0.15451851,65200.0,65199.0,0.15256112]
[1718921826898,0.15422634,65200.0,65199.0,0.15256112]
[1718921827078,0.15822634,65200.0,65199.0,0.15256112]
[1718921827279,0.1383572,65213.0,65199.0,0.15256112]
[1718921827497,0.0746,65200.0,65199.0,0.15256112]
[1718921829089,0.0786,65200.0,65199.0,0.15256112]
[1718921830746,0.0826,65200.0,65199.0,0.15256112]
[1718921833998,0.008,65200.0,65199.0,0.15256112]
[1718921834204,0.0826,65200.0,65199.0,0.15256112]
[1718921835911,0.09086,65200.0,65195.0,0.000946]
[1718921836762,0.0786,65200.0,65195.0,0.000946]
[1718921836977,0.004,65200.0,65196.0,0.15256112]
[1718921837178,0.0746,65197.0,65196.0,0.15256112]
[1718921837326,0.0746,65197.0,65195.0,0.000946]
[1718921837327,0.09500778,65197.0,65195.0,0.000946]
[1718921837670,0.02040778,65196.0,65193.0,0.000946]
[1718921837915,0.0746,65194.0,65193.0,0.15350712]
[1718921838135,0.09500778,65194.0,65193.0,0.15350712]
[1718921839189,0.09500778,65194.0,65193.0,0.000946]
[1718921839398,0.09520104,65194.0,65193.0,0.000946]
[1718921839600,0.07247419,65208.0,65193.0,0.000946]
[1718921839717,0.0746,65194.0,65193.0,0.000946]
[1718921839912,0.0776,65194.0,65193.0,0.000946]
[1718921840428,0.0836,65194.0,65193.0,0.001946]
[1718921840704,0.0906,65194.0,65193.0,0.001946]
[1718921843178,0.016,65194.0,65193.0,0.001946]
[1718921843384,0.0906,65194.0,65193.0,0.001946]
[1718921843581,0.016,65194.0,65193.0,0.201946]
[1718921843785,0.016,65194.0,65193.0,0.001946]
[1718921843991,0.0906,65194.0,65193.0,0.001946]
[1718921845021,0.09966,65194.0,65193.0,0.001946]
[1718921845222,0.0906,65194.0,65193.0,0.001946]
[1718921849435,0.0836,65194.0,65193.0,0.001946]
[1718921849584,0.0836,65194.0,65193.0,0.000946]
[1718921849585,0.09347848,65194.0,65193.0,0.000946]
[1718921849990,0.10247848,65194.0,65193.0,0.001946]
[1718921850198,0.11647848,65194.0,65193.0,0.001946]
[1718921850628,0.11624814,65194.0,65193.0,0.001946]
[1718921850846,0.11647848,65194.0,65193.0,0.001946]
[1718921851893,0.11647848,65194.0,65188.0,1e-08]
[1718921852225,0.0746,65189.0,65188.0,1e-08]
[1718921852466,0.09357499,65189.0,65188.0,1e-08]
[1718921853099,0.09357499,65189.0,65188.0,0.00100001]
[1718921853631,0.09357499,65189.0,65188.0,1e-08]
[1718921853861,0.09357499,65189.0,65188.0,0.00100001]
[1718921853862,0.10957499,65189.0,65188.0,0.00100001]
[1718921855342,0.10977148,65189.0,65188.0,0.00100001]
[1718921858417,0.11001772,65189.0,65188.0,0.00100001]
[1718921859994,0.03541772,65189.0,65188.0,0.00100001]
[1718921860205,0.11001772,65189.0,65188.0,0.00100001]
[1718921860410,0.11001772,65189.0,65188.0,0.48480001]
[1718921860411,0.03541772,65189.0,65188.0,0.48480001]
[1718921860867,0.03541772,65189.0,65188.0,0.65736113]
[1718921861314,0.03541772,65189.0,65188.0,0.43736113]
[1718921861512,0.03636244,65189.0,65188.0,0.43736113]
[1718921864518,0.016,65189.0,65188.0,0.43736113]
[1718921864764,0.0410757,65189.0,65188.0,0.43736113]
[1718921867842,0.04102191,65189.0,65188.0,0.43736113]
[1718921871477,0.04102191,65189.0,65188.0,0.00100001]
[1718921877279,0.04005722,65189.0,65188.0,0.00100001]
[1718921880408,0.04009356,65189.0,65188.0,0.00100001]
[1718921883757,0.04057544,65189.0,65188.0,0.00100001]
[1718921884168,0.04044148,65189.0,65188.0,0.00100001]
[1718921886667,0.04130148,65189.0,65188.0,0.00100001]
[1718921886882,0.04130148,65189.0,65184.0,0.1226]
[1718921887134,0.04130148,65189.0,65183.0,0.00948199]
[1718921887135,0.0746,65185.0,65183.0,0.00948199]
[1718921887337,0.0746,65185.0,65174.0,0.1226]
[1718921887338,0.02444148,65184.0,65174.0,0.1226]
[1718921887541,0.0746,65178.0,65174.0,0.1226]
[1718921887699,0.02444148,65177.0,65175.0,8.26128502]
[1718921887899,0.02444148,65176.0,65175.0,8.26128502]
[1718921888737,0.012,65178.0,65175.0,8.26228502]
[1718921888899,0.0746,65176.0,65175.0,8.26228502]
[1718921889100,0.09580438,65176.0,65175.0,8.26128502]
[1718921890050,0.01247509,65176.0,65175.0,8.26128502]
[1718921890346,0.08707509,65176.0,65175.0,8.26128502]
[1718921890496,0.09907509,65176.0,65175.0,8.26128502]
[1718921890925,0.11307509,65176.0,65175.0,8.26128502]
[1718921892142,0.03847509,65176.0,65175.0,8.26128502]
[1718921892473,0.11307509,65176.0,65175.0,8.26128502]
[1718921893039,0.11253956,65176.0,65175.0,8.26128502]
[1718921893469,0.11253973,65176.0,65175.0,8.26128502]
[1718921898242,0.11253973,65176.0,65175.0,8.24881502]
[1718921899286,0.11255057,65176.0,65175.0,8.24881502]
[1718921899713,0.11255057,65176.0,65175.0,8.23060502]
[1718921899903,0.11255057,65176.0,65175.0,8.22460502]
[1718921901318,0.11255057,65176.0,65175.0,8.21260502]
[1718921902529,0.03810511,65176.0,65175.0,8.20765502]
[1718921902748,0.15841607,65176.0,65175.0,8.20765502]
[1718921904323,0.18619423,65176.0,65175.0,8.20765502]
[1718921905685,0.18666324,65176.0,65175.0,8.20765502]
[1718921908857,0.18587381,65176.0,65175.0,8.20765502]
[1718921911618,0.18587381,65176.0,65175.0,8.20604502]
[1718921912955,0.11120199,65187.0,65175.0,8.20604502]
[1718921913281,0.0746,65176.0,65175.0,8.17172502]
[1718921914853,0.0746,65176.0,65175.0,8.17032502]
[1718921915497,0.0866,65176.0,65175.0,8.16632502]
[1718921916520,0.0916,65176.0,65175.0,8.16732502]
[1718921916876,0.0916,65176.0,65175.0,8.10532502]
[1718921918579,0.0916,65176.0,65175.0,8.04232502]
[1718921919883,0.0916,65176.0,65175.0,8.03632502]
[1718921920630,0.0916,65176.0,65175.0,8.00632502]
[1718921921355,0.0916,65176.0,65175.0,7.98633102]
[1718921922835,0.10114517,65176.0,65175.0,7.98633102]
[1718921923469,0.11125969,65176.0,65175.0,7.98633102]
[1718921924552,0.10171452,65176.0,65175.0,7.98633102]
[1718921924757,0.11125969,65176.0,65175.0,7.98633102]
[1718921925601,0.11125969,65176.0,65175.0,7.96283102]
[1718921925832,0.11125969,65176.0,65175.0,7.94983102]
[1718921926225,0.11125969,65176.0,65175.0,7.90083102]
[1718921926781,0.15308473,65176.0,65175.0,7.90083102]
[1718921927508,0.18076522,65176.0,65175.0,7.90083102]
[1718921927914,0.18076509,65176.0,65175.0,7.90083102]
[1718921928093,0.18076509,65176.0,65175.0,7.80883102]
[1718921928919,0.18076509,65176.0,65175.0,7.75883102]
[1718921929855,0.17065057,65176.0,65175.0,7.75883102]
[1718921930421,0.17065057,65176.0,65175.0,7.34223802]
[1718921930824,0.17065057,65176.0,65175.0,7.24940751]
[1718921930825,0.33245057,65176.0,65175.0,7.24940751]
[1718921931043,1.05498678,65176.0,65175.0,7.13079673]
[1718921931278,0.99228701,65176.0,65175.0,7.13079673]
[1718921931686,0.98028701,65176.0,65175.0,7.13079673]
[1718921932244,0.99228701,65176.0,65175.0,7.13179673]
[1718921932453,0.98028701,65176.0,65175.0,7.13079673]
[1718921932595,0.97528701,65176.0,65175.0,7.12979673]
[1718921932927,1.00128701,65176.0,65175.0,7.13079673]
[1718921933289,0.98728701,65176.0,65175.0,7.13079673]
[1718921933640,1.00128701,65176.0,65175.0,7.13079673]
[1718921933987,1.00128701,65176.0,65175.0,7.12979673]
[1718921934330,0.99014542,65176.0,65175.0,7.12979673]
[1718921934535,1.00414542,65176.0,65175.0,7.12979673]
[1718921934766,1.00414542,65176.0,65175.0,7.12779673]
[1718921935181,0.99014542,65176.0,65175.0,7.12779673]
[1718921935539,1.00414542,65176.0,65175.0,7.12779673]
[1718921935741,0.99014542,65176.0,65175.0,7.12779673]
[1718921935928,1.00414542,65176.0,65175.0,7.12779673]
[1718921937036,1.00414542,65176.0,65175.0,7.09079673]
[1718921937365,1.00328762,65176.0,65175.0,7.09079673]
[1718921937571,1.00328762,65176.0,65175.0,7.08079673]
[1718921937775,1.00328762,65176.0,65175.0,7.06079673]
[1718921937934,1.00328762,65176.0,65175.0,7.04679673]
[1718921938517,1.00328762,65176.0,65175.0,6.99045768]
[1718921939338,1.00328762,65176.0,65175.0,6.98643768]
[1718921939746,1.00328762,65176.0,65175.0,6.98343768]
[1718921939937,1.00328762,65176.0,65175.0,6.97989768]
[1718921940400,1.00328776,65176.0,65175.0,6.96889768]
[1718921940731,1.00328776,65176.0,65175.0,6.92520768]
[1718921940935,1.00328776,65176.0,65175.0,6.92369768]
[1718921941135,1.00328776,65176.0,65175.0,6.91604898]
[1718921941540,0.92868776,65176.0,65175.0,6.91604898]
[1718921941748,0.87781453,65176.0,65175.0,6.80703898]
[1718921941949,0.92083953,65176.0,65175.0,6.78081898]
[1718921943062,0.10705053,65176.0,65175.0,7.04191898]
[1718921943500,0.18165053,65176.0,65175.0,7.04191898]
[1718921944132,0.08350553,65176.0,65175.0,7.04191898]
[1718921944333,0.1676524,65176.0,65175.0,7.04191898]
[1718921944646,0.15365241,65176.0,65175.0,7.04191898]
[1718921944853,0.18165241,65176.0,65175.0,7.04191898]
[1718921945455,0.18165241,65176.0,65175.0,7.02791898]
[1718921945814,0.18165241,65176.0,65175.0,7.22791898]
[1718921946022,0.18165241,65176.0,65175.0,7.02791898]
[1718921946221,0.16765241,65176.0,65175.0,7.02791898]
[1718921946619,0.18165251,65176.0,65175.0,7.02791898]
[1718921949899,0.18165278,65176.0,65175.0,7.02791898]
[1718921950097,0.18165278,65176.0,65175.0,7.02886498]
[1718921950349,0.18251278,65176.0,65175.0,7.02886498]
[1718921952950,0.17296553,65176.0,65175.0,7.02886498]
[1718921953151,0.18251298,65176.0,65175.0,7.02886498]
[1718921955088,0.2,65185.0,65175.0,7.02886498]
[1718921955293,0.0746,65176.0,65175.0,7.02886498]
[1718921963351,0.07628172,65178.0,65175.0,7.02886498]
[1718921963551,0.0746,65176.0,65175.0,7.02886498]
[1718921963937,0.0746,65176.0,65175.0,7.01286498]
[1718921964480,0.0746,65176.0,65175.0,7.01386498]
[1718921964634,0.0746,65176.0,65175.0,6.99086498]
[1718921965159,0.08415659,65176.0,65175.0,6.98986498]